[Event "Czech Championship 2022"]
[Site "Usti nad Labem"]
[Date "2022.05.16"]
[Round "3.11"]
[White "Buchcar, Tomas"]
[Black "Stinka, Jakub"]
[Result "1-0"]
[ECO "B23"]
[WhiteElo "2183"]
[BlackElo "2345"]
[Annotator "TA"]
[PlyCount "127"]
[EventDate "2022.05.12"]
[EventType "swiss"]
[EventCountry "CZE"]
[SourceTitle "playchess.com"]
[Source "ChessBase"]
[SourceQuality "1"]
[TimeControl "40/5400+30:1800+30"]

{[%evp 9,127,14,46,0,0,-27,6,0,-7,-40,-21,-63,-38,-156,-158,-138,-87,-190,-67,-73,-62,-56,-58,-78,-64,-82,-34,-47,-44,-139,-102,-127,-58,-81,-84,-93,-34,-40,-46,-32,0,0,0,-35,35,68,47,39,72,0,78,59,54,35,27,22,49,47,54,72,219,216,222,224,287,305,517,490,687,663,731,704,784,772,785,784,769,769,743,734,847,832,726,574,5955,12802,29969,29969,29966,29967,29976,29977,29979,29980,29980,29981,29981,29982,29982,29983,29985,29986,29986,29987,29988,29989,29989,29990,29992,29993,29993,29994,29994,29995,29995,29996,29998,29998,29998,29999]} 1. e4 {[%emt 0:25:50]} c5 {[%emt 0:00:14]} 2. Nc3 {[%emt 0:00:07]} Nc6 {[%emt 0:00:08]} 3. Bb5 {[%emt 0:00:14]} e6 {[%emt 0:00:12]} 4. Bxc6 {[%emt 0:00:19]} bxc6 {[%emt 0:00:04]} 5. d3 {[%emt 0:00:47]} Ne7 {[%emt 0:00:30]} 6. Be3 {[%emt 0:05:55] B23: Closed Sicilian: Lines without g3.} (6. f4 $14 {is more appropriate.}) 6... Ng6 $11 {[%emt 0:01:35] [#]} 7. b3 $146 {[%emt 0:20:26]} ({Predecessor:} 7. f4 d5 8. Bd2 c4 9. dxc4 Ba6 10. cxd5 cxd5 11. exd5 Bc5 12. Ne4 Bxg1 13. Rxg1 exd5 {0-1 (30) Mkrtchian,L (2395)-Dzagnidze,N (2520) Moscow 2019}) 7... e5 {[%emt 0:04:54]} 8. Na4 {[%emt 0:11:30] The position is equal.} d6 {[%emt 0:02:13]} 9. c4 {[%emt 0:03:34]} Be7 {[%emt 0:02:21]} 10. Qd2 {[%emt 0:05:11]} O-O {[%emt 0:03:23]} 11. Ne2 {[%emt 0:03:48]} ({White should try} 11. f3 $15) 11... Nh4 $1 $17 {[%emt 0:03:41]} 12. Rg1 {[%emt 0:11:47] [#]} f5 {[%emt 0:04:15]} (12... Bh3 $142 $1 {[%mdl 512]} 13. O-O-O Bxg2) 13. f4 {[%emt 0:00:32]} (13. exf5 $17 {was the only defense.} Nxf5 14. O-O-O) 13... Ng6 {[%emt 0:12:07]} (13... fxe4 $19 14. dxe4 exf4 15. Bxf4 {[#]} Bh3 $1) 14. g3 $15 {[%emt 0:00:38]} exf4 {[%emt 0:03:20]} 15. gxf4 {[%emt 0:00:31]} Bh4+ {[%emt 0:01:41]} 16. Kd1 {[%emt 0:00:08]} Bf6 {[%emt 0:04:24]} 17. Nac3 {[%emt 0:00:26]} Be6 {[%emt 0:02:43]} ({Reject} 17... fxe4 $6 18. dxe4 Re8 19. Kc2 $11) (17... a5 $17) 18. Kc2 {[%emt 0:00:16]} a5 {[%emt 0:02:08][%cal Oa5a4]} 19. a4 {[%emt 0:00:06]} ({White should play} 19. Rad1 $15) 19... Qb6 {[%emt 0:02:40]} 20. Rab1 {[%emt 0:00:16]} Rab8 {[%emt 0:02:18]} (20... Nh4 $17 {[%cal Od6d5]} 21. Rgf1 Qb4) 21. exf5 {[%emt 0:01:05]} Bxf5 {[%emt 0:00:18] White must now prevent ...Nh4. A strong pair of Bishops.} 22. Ne4 {[%emt 0:00:01]} Rbd8 {[%emt 0:07:53]} (22... Be7 $17 {aiming for ...d5.} 23. N2c3 Qd8) 23. Nxf6+ {[%emt 0:00:30]} Rxf6 {[%emt 0:00:03]} 24. Ng3 {[%emt 0:00:16]} d5 {[%emt 0:02:34]} 25. Nxf5 {[%emt 0:00:10]} Rxf5 {[%emt 0:00:02]} 26. Rg5 {[%emt 0:00:10]} Rdf8 {[%emt 0:05:51]} ({Better is} 26... Rf7 $15) 27. Rxf5 $14 {[%emt 0:00:21]} Rxf5 {[%emt 0:00:02]} 28. Qf2 {[%emt 0:00:13]} Qb8 {[%emt 0:08:13][%cal Rg6f4]} 29. Bxc5 {[%emt 0:02:50]} (29. Rf1 $16) 29... Rxf4 {[%emt 0:02:37]} (29... Nxf4 $11 30. Re1 h6) 30. Qg3 {[%emt 0:00:10][%cal Ob1f1] Rf1! is the strong threat.} Qc8 {[%emt 0:04:07]} 31. Bd6 {[%emt 0:02:29]} Rg4 {[%emt 0:01:25]} 32. Qf2 {[%emt 0:00:50]} Qd7 {[%emt 0:18:34] [#]} 33. Rf1 $1 {[%emt 0:05:34][%cal Of2f8]} h6 {[%emt 0:00:00]} 34. Bg3 {[%emt 0:00:00]} h5 {[%emt 0:00:00]} (34... Rg5 $16) 35. Qf5 $18 {[%emt 0:00:00]} Qxf5 {[%emt 0:00:00]} 36. Rxf5 {[%emt 0:00:00][%mdl 4096] Endgame KRB-KRN} h4 {[%emt 0:00:00]} 37. Bd6 {[%emt 0:00:00]} d4 $2 {[%emt 0:00:00]} (37... Rg2+ 38. Kc3 Rg1 39. cxd5 cxd5 40. Rxd5 Rc1+ 41. Kd2 Rc6) 38. b4 {[%emt 0:00:00]} Rg2+ {[%emt 0:00:00]} (38... axb4 $142 39. a5 Rg1) 39. Kb3 {[%emt 0:00:00]} Rd2 {[%emt 0:03:30]} 40. Rf3 {[%emt 0:00:00]} axb4 {[%emt 0:00:00]} 41. a5 {[%emt 0:34:00]} Rd1 {[%emt 0:03:22]} 42. Kxb4 {[%emt 0:00:00]} Ra1 {[%emt 0:01:54]} 43. Kc5 {[%emt 0:01:00]} Rxa5+ {[%emt 0:26:44]} 44. Kxc6 {[%emt 0:00:00]} Ne5+ {[%emt 0:00:00]} 45. Bxe5 {[%emt 0:00:00]} Rxe5 {[%emt 0:00:00] KR-KR} 46. Kd6 {[%emt 0:01:30]} Re2 {[%emt 0:00:00]} 47. c5 {[%emt 0:00:00] c6 would kill now.} Rxh2 {[%emt 0:00:00]} 48. c6 {[%emt 0:00:00] White mates.} Rc2 {[%emt 0:00:00]} 49. c7 {[%emt 0:00:00]} Kh7 {[%emt 0:00:00]} 50. Rf8 {[%emt 0:00:00]} Kg6 {[%emt 0:00:00]} 51. c8=Q {[%emt 0:00:00]} Rxc8 {[%emt 0:00:00]} 52. Rxc8 {[%emt 0:00:00] KR-K3P} Kf5 {[%emt 0:00:00]} 53. Rf8+ {[%emt 0:00:00]} Kg4 {[%emt 0:00:00]} 54. Ke5 {[%emt 0:00:00]} g5 {[%emt 0:00:00]} 55. Kxd4 {[%emt 0:00:00] KR-KPP} Kg3 {[%emt 0:00:00]} 56. Ke3 {[%emt 0:00:00]} g4 {[%emt 0:00:31]} 57. d4 {[%emt 0:00:00]} h3 {[%emt 0:02:30]} 58. d5 {[%emt 0:00:00]} Kh2 {[%emt 0:00:37]} 59. d6 {[%emt 0:00:00]} g3 {[%emt 0:00:02]} 60. d7 {[%emt 0:00:00]} g2 {[%emt 0:00:29]} 61. Rf2 {[%emt 0:00:00]} Kh1 {[%emt 0:01:14]} 62. d8=Q {[%emt 0:00:00]} h2 {[%emt 0:00:52]} 63. Qg5 {[%emt 0:00:00][%csl Gf2][%cal Rg5g2]} g1=Q {[%emt 0:00:47]} 64. Qd5+ {[%emt 0:00:00] Never resign too early!  Weighted Error Value: White=0.18 (very precise) /Black=0.40} 1-0

[Event "Czech Championship 2022"]
[Site "Usti nad Labem"]
[Date "2022.05.16"]
[Round "3.12"]
[White "Krivanek, Vladimir"]
[Black "Horak, Martin"]
[Result "1-0"]
[ECO "A00"]
[WhiteElo "2180"]
[BlackElo "2343"]
[Annotator "TA"]
[PlyCount "119"]
[EventDate "2022.05.12"]
[EventType "swiss"]
[EventCountry "CZE"]
[SourceTitle "playchess.com"]
[Source "ChessBase"]
[SourceQuality "1"]
[TimeControl "40/5400+30:1800+30"]

{[%evp 9,119,-27,-25,-102,-17,-104,-7,-9,-8,-21,-18,-22,0,0,0,0,6,25,14,0,38,-10,3,2,13,-54,79,62,81,78,89,66,69,87,54,54,60,56,153,142,237,233,309,305,306,272,272,-6,107,18,18,13,13,13,1,0,62,2,2,8,30,37,42,45,38,54,76,75,85,26,147,108,454,381,804,648,6079,5850,5625,5089,2207,370,353,355,343,310,1430,1230,1385,1061,1472,1108,5401,2414,29965,29960,12838,9942,29974,29974,29978,29971,29981,29978,29983,29983,29983,29984,29986,29987,29986,29987]} 1. b4 {[%emt 0:04:42]} e5 {[%emt 0:00:30]} 2. Bb2 {[%emt 0:00:05]} Bxb4 {[%emt 0:00:16]} 3. Bxe5 {[%emt 0:00:08]} Nf6 {[%emt 0:00:06]} 4. c3 {[%emt 0:00:12]} Ba5 {[%emt 0:01:50]} 5. Qa4 {[%emt 0:03:53]} Nc6 {[%emt 0:01:46]} 6. Nf3 {[%emt 0:13:54] A00: Irregular Openings.} (6. e3 $11) 6... O-O {[%emt 0:01:31]} (6... Nxe5 $17 7. Qxa5 (7. Nxe5 c6 $17) 7... Nxf3+ 8. gxf3 O-O) 7. e3 {[%emt 0:02:52]} (7. Bxf6 $11 {remains equal.} Qxf6 8. e3) 7... d5 {[%emt 0:18:35]} (7... Nxe5 $17 8. Qxa5 Nxf3+ 9. gxf3 Re8) 8. Bxf6 $11 {[%emt 0:07:22] The position is equal.} Qxf6 {[%emt 0:00:30] [#]} 9. Be2 $146 {[%emt 0:00:14]} ({Predecessor:} 9. Bb5 Bb6 10. d4 Ne7 11. O-O Rd8 12. Nbd2 Bf5 13. Rfe1 c6 14. Bf1 c5 15. e4 Bxe4 16. Nxe4 dxe4 17. Rxe4 cxd4 18. cxd4 {½-½ (50) Buczinski,H (2036)-Kolanek,R (1973) LSS email 2012}) 9... Bb6 {[%emt 0:08:35]} 10. d4 {[%emt 0:03:04]} Ne7 {[%emt 0:02:25]} (10... Bd7 $5 {[%cal Rc6d4]}) 11. Nbd2 {[%emt 0:02:27]} c6 {[%emt 0:02:49]} 12. O-O {[%emt 0:06:55]} Bc7 {[%emt 0:02:35]} 13. c4 {[%emt 0:02:13]} Re8 {[%emt 0:05:43]} 14. Rab1 {[%emt 0:04:00]} g5 {[%emt 0:05:26]} 15. Qd1 {[%emt 0:16:33]} (15. g3 $14 {might be stronger.}) 15... Kg7 {[%emt 0:12:37]} 16. e4 {[%emt 0:04:16]} Qh6 {[%emt 0:08:08]} 17. g3 {[%emt 0:03:45]} ({Better is} 17. e5 $11) 17... f5 {[%emt 0:05:16]} (17... dxe4 $1 $15 {keeps the upper hand.} 18. Nxe4 Ng6) 18. exd5 {[%emt 0:06:21]} cxd5 {[%emt 0:00:20]} 19. Re1 {[%emt 0:01:10]} Qf6 {[%emt 0:01:52]} 20. Qa4 {[%emt 0:03:42]} Rd8 {[%emt 0:01:44]} 21. Bf1 {[%emt 0:02:43]} dxc4 {[%emt 0:02:48]} 22. Qxc4 {[%emt 0:01:48]} (22. Bxc4 Ng6 $11) 22... Bb6 {[%emt 0:02:18]} 23. Nb3 {[%emt 0:02:16]} Nd5 {[%emt 0:07:58]} (23... f4 $14) 24. Re5 $16 {[%emt 0:01:54] Rbe1 is the strong threat.} g4 {[%emt 0:02:41]} (24... Be6 $16) 25. Nh4 $1 $18 {[%emt 0:00:41]} (25. Rxd5 Be6 26. Rxd8 Rxd8 $14) 25... Ne7 {[%emt 0:01:39]} 26. Rbe1 $1 {[%emt 0:01:03]} Nc6 {[%emt 0:00:21]} 27. Re8 {[%emt 0:01:08]} Bd7 {[%emt 0:00:39] [#]} 28. R8e3 {[%emt 0:03:09]} (28. R8e6 $1 $18 {[%cal Re6f6][%mdl 512]} Bxe6 29. Rxe6) 28... Re8 {[%emt 0:01:55] [#]} (28... Nxd4 $2 29. Re7+ Kf8 30. Nxd4 Bxd4 31. Qb4 $18) (28... Bxd4 $2 29. Nxd4 Nxd4 30. Re7+ Kf8 31. Rxh7 $18) (28... Kh8 $1 $11) 29. Rxe8 {[%emt 0:00:14]} (29. Nc5 $1 $16 {[%cal Rc5d7]} Rxe3 30. Nxd7 Rxe1 31. Nxf6 Kxf6 {[#]} 32. Nxf5 $1) 29... Rxe8 $11 {[%emt 0:00:11]} 30. Rxe8 {[%emt 0:00:48]} Bxe8 {[%emt 0:00:01]} 31. Qd5 {[%emt 0:01:03]} Bg6 {[%emt 0:01:26]} 32. Bd3 {[%emt 0:01:07][%cal Rh4f5]} f4 {[%emt 0:01:23]} ({Black should try} 32... Nb4 $11 33. Qxb7+ Qf7 34. Nxf5+ Kf6 35. Qxf7+ Bxf7) 33. Bxg6 {[%emt 0:00:35] White is more active.} (33. Qd7+ $14 Kh6 34. Nxg6 hxg6 35. Qxg4) 33... hxg6 {[%emt 0:00:08]} 34. Qd7+ {[%emt 0:00:40]} Qf7 {[%emt 0:00:34]} 35. Qxg4 {[%emt 0:00:22]} Nxd4 {[%emt 0:00:41]} 36. Nxd4 {[%emt 0:00:16]} Bxd4 {[%emt 0:00:10]} 37. gxf4 {[%emt 0:00:15][%mdl 4096] Endgame KQB-KQN} Bf6 {[%emt 0:00:49]} 38. Nf5+ $1 {[%emt 0:00:31]} Kf8 {[%emt 0:00:27]} (38... Kh7 $2 39. Qh3+ Kg8 40. Nh6+ Kg7 41. Nxf7 $18) 39. Nd6 {[%emt 0:00:45]} (39. Nh6 $16 Qe8 40. Qd1) 39... Qc7 {[%emt 0:00:42]} (39... Qxa2 $11 40. Qc8+ (40. Qxg6 Qg8 $14) 40... Ke7 41. Qc7+ (41. Nxb7 Qd5 $11) 41... Kf8) 40. Ne4 {[%emt 0:00:41]} Kf7 $2 {[%emt 0:00:30][%mdl 8192] This costs Black the game.} (40... Bd8 $16 {is a better chance.} 41. f5 (41. Qxg6 Qxf4 42. h3 b6 $16) 41... gxf5 42. Qxf5+ Kg8 43. Qd5+ Kf8) 41. f5 $18 {[%emt 0:02:02]} Qc1+ $2 {[%emt 0:09:11]} (41... g5 42. Qh5+ (42. Nxg5+ Bxg5 43. Qxg5 Qb6 $18) 42... Kf8) 42. Kg2 {[%emt 0:00:18]} Qh6 {[%emt 0:00:47]} 43. fxg6+ {[%emt 0:04:28]} ({Not} 43. Qg3 gxf5 44. Qb3+ (44. Nd6+ Ke6 $16) 44... Kf8 $16) 43... Qxg6 {[%emt 0:00:21]} 44. Nd6+ {[%emt 0:00:15]} Kg7 {[%emt 0:00:38]} 45. Qxg6+ $2 {[%emt 0:00:15]} (45. Ne8+ Kh6 46. Qxg6+ Kxg6 47. Nxf6) 45... Kxg6 {[%emt 0:00:05]} 46. Nxb7 {[%emt 0:00:14] KB-KN} Kf5 {[%emt 0:00:28]} 47. Kf3 {[%emt 0:00:25]} Ke5 $2 {[%emt 0:00:19]} (47... Be5 48. h3 Bc7) 48. Kg4 {[%emt 0:03:53]} Kd5 {[%emt 0:00:33]} 49. h4 {[%emt 0:01:51][%cal Bh2h4,Bh4h5][%mdl 32]} Kc6 {[%emt 0:00:16]} 50. Na5+ {[%emt 0:00:09]} Kb5 {[%emt 0:00:04]} 51. Nb3 {[%emt 0:00:14] h5 would kill now.} Kb4 {[%emt 0:00:08]} 52. f4 {[%emt 0:02:36]} Ka3 {[%emt 0:00:09]} 53. h5 {[%emt 0:01:00] White threatens Nc5 and mate.} Kxa2 {[%emt 0:00:05]} 54. Na5 {[%emt 0:00:11] White mates.} Ka3 {[%emt 0:01:59]} 55. Kf5 {[%emt 0:00:54]} Bh8 {[%emt 0:00:41]} 56. Ke6 {[%emt 0:00:28]} Kb4 {[%emt 0:01:25]} 57. Nc6+ {[%emt 0:02:53]} Kc5 {[%emt 0:00:05]} 58. Nxa7 {[%emt 0:00:31]} Kd4 {[%emt 0:00:11]} 59. h6 {[%emt 0:00:56]} Ke4 {[%emt 0:00:28]} 60. f5 {[%emt 0:00:10] Weighted Error Value: White=0.45/Black=0.64} 1-0

[Event "Czech Championship 2022"]
[Site "Usti nad Labem"]
[Date "2022.05.16"]
[Round "3.13"]
[White "Mica, Marek"]
[Black "Paseka, Matyas"]
[Result "1/2-1/2"]
[ECO "A42"]
[WhiteElo "2343"]
[BlackElo "2076"]
[Annotator "TA"]
[PlyCount "196"]
[EventDate "2022.05.12"]
[EventType "swiss"]
[EventCountry "CZE"]
[SourceTitle "playchess.com"]
[Source "ChessBase"]
[SourceQuality "1"]
[TimeControl "40/5400+30:1800+30"]

{[%evp 12,196,47,42,48,34,34,39,52,16,28,0,50,0,63,59,120,68,106,89,102,88,92,91,92,87,86,90,92,76,77,77,93,67,102,82,89,81,84,36,61,51,64,40,79,12,110,117,140,117,130,117,165,165,165,117,165,117,141,141,165,165,165,165,165,165,165,165,165,165,165,165,165,165,165,165,165,165,165,165,165,156,156,148,148,148,148,148,148,148,148,141,141,141,141,139,139,139,139,139,139,137,137,137,137,137,137,137,137,-32,-32,-32,37,0,71,71,71,-17,-17,-17,-17,-17,-17,-24,-31,-31,-31,-31,0,-31,0,-31,0,-31,-31,-31,25,-31,-31,-31,0,-31,0,-31,159,-31,-31,-31,181,181,181,123,123,123,123,123,123,123,123,123,123,123,123,0,185,123,440,108,437,0,0,0,0,0,0,0,0,0,0,0,0,0,0,0,0,0,0]} 1. d4 {[%emt 0:00:02]} g6 {[%emt 0:00:07]} 2. c4 {[%emt 0:00:10]} Bg7 {[%emt 0:00:06]} 3. e4 {[%emt 0:00:08]} d6 {[%emt 0:00:16]} 4. Nc3 {[%emt 0:00:31]} Nd7 {[%emt 0:00:50]} 5. Be3 {[%emt 0:01:13]} e5 {[%emt 0:00:44]} 6. d5 {[%emt 0:02:08]} Ne7 {[%emt 0:00:33]} 7. g4 {[%emt 0:06:00]} O-O {[%emt 0:04:22] A42: Modern Defence: Averbakh Variation.} 8. Qd2 {[%emt 0:04:03]} f5 {[%emt 0:15:44]} 9. f3 {[%emt 0:00:52]} Nf6 {[%emt 0:04:40] White is slightly better.} 10. h3 {[%emt 0:00:46]} a6 {[%emt 0:14:23]} 11. a4 {[%emt 0:03:35]} c5 {[%emt 0:01:40]} (11... Bd7 $11) 12. Nge2 {[%emt 0:04:43] [#]} (12. Bd3 $14) 12... f4 $146 {[%emt 0:05:50]} (12... Qa5 $11) ({Predecessor:} 12... Bd7 13. Nc1 b6 14. Bd3 Rf7 15. N1e2 Qc7 16. O-O Raf8 17. Kg2 Qc8 18. Bh6 fxg4 19. fxg4 Bxg4 20. hxg4 Qxg4+ {0-1 (25) Kljako,D (2227)-Saric,I (2366) Kastav 2002}) 13. Bf2 $14 {[%emt 0:00:22]} a5 {[%emt 0:00:45]} (13... Bd7 $14) 14. Bh4 {[%emt 0:06:42]} (14. h4 $16) 14... Kh8 {[%emt 0:04:41]} 15. Nc1 {[%emt 0:00:41]} Neg8 {[%emt 0:01:18][%cal Of6e4]} 16. Qf2 {[%emt 0:03:19]} h6 {[%emt 0:12:26]} 17. Qh2 {[%emt 0:08:23]} ({Much worse is} 17. g5 $6 Nxd5 18. Nxd5 hxg5 $11) 17... g5 {[%emt 0:05:38]} 18. Bf2 {[%emt 0:01:48]} Ne7 {[%emt 0:00:35]} 19. h4 {[%emt 0:01:53] aiming for hxg5.} Kg8 {[%emt 0:00:11]} 20. Nd3 {[%emt 0:00:22]} b6 {[%emt 0:01:32]} 21. O-O-O {[%emt 0:00:47]} Ng6 {[%emt 0:01:06]} 22. Be2 {[%emt 0:03:58]} (22. Nb5 {with more complications.} Kf7 23. Be1 Ne8 24. h5) 22... Ba6 {[%emt 0:01:56]} 23. b3 {[%emt 0:02:57]} Qe7 {[%emt 0:02:07]} 24. Qh3 {[%emt 0:00:51]} Kf7 {[%emt 0:00:36]} 25. Rh2 {[%emt 0:00:21]} (25. Kb2 $16) 25... Rh8 {[%emt 0:00:44]} 26. Rdh1 {[%emt 0:00:25]} Rh7 {[%emt 0:01:43]} 27. Qf1 {[%emt 0:00:42] Black must now prevent hxg5.} Rah8 {[%emt 0:00:41]} 28. Rh3 {[%emt 0:00:17]} (28. h5 $16 Nf8 29. Nb5) 28... Nf8 {[%emt 0:01:05]} (28... Nxh4 $11 {keeps the balance.} 29. Bxh4 gxh4) 29. Nb5 {[%emt 0:00:53]} Bxb5 {[%emt 0:00:50]} 30. cxb5 {[%emt 0:01:10]} Qc7 {[%emt 0:10:51]} 31. Nb2 {[%emt 0:00:29]} N6d7 {[%emt 0:02:45]} (31... gxh4 $16 32. Bxh4 Ng6) 32. Nc4 {[%emt 0:00:29]} Bf6 {[%emt 0:00:36]} 33. R1h2 {[%emt 0:00:33]} (33. h5 $18) 33... Kg7 {[%emt 0:02:22]} (33... gxh4 $16 34. Bxh4 Bxh4) 34. Be1 {[%emt 0:00:46]} (34. h5 $18) 34... Ng6 {[%emt 0:01:01]} 35. h5 {[%emt 0:04:47]} Ne7 {[%emt 0:00:15]} 36. Bc3 {[%emt 0:00:15]} Ra8 {[%emt 0:00:21]} 37. Bd3 {[%emt 0:00:19]} Rhh8 {[%emt 0:00:26]} 38. Ra2 {[%emt 0:00:15]} Rhb8 {[%emt 0:00:27]} 39. Rhh2 {[%emt 0:00:11]} Nc8 {[%emt 0:00:34]} 40. Rhc2 {[%emt 0:00:19]} Qd8 {[%emt 0:00:46]} 41. Qe1 {[%emt 0:30:40]} Kf7 {[%emt 0:30:59]} 42. Kd1 {[%emt 0:00:36]} Ke7 {[%emt 0:00:25]} 43. Ke2 {[%emt 0:00:17]} Ra7 {[%emt 0:01:20]} 44. Rc1 {[%emt 0:00:54]} Rba8 {[%emt 0:00:20]} 45. Rca1 {[%emt 0:00:55]} Qc7 {[%emt 0:00:43]} 46. Bd2 {[%emt 0:00:38]} Kf7 {[%emt 0:00:16]} 47. Qd1 {[%emt 0:01:54]} Be7 {[%emt 0:00:18]} 48. Rc1 {[%emt 0:01:06]} Qd8 {[%emt 0:00:02]} 49. Bc3 {[%emt 0:00:24]} Bf6 {[%emt 0:00:11]} 50. Qd2 {[%emt 0:00:14]} Ke7 {[%emt 0:00:33]} 51. Kd1 {[%emt 0:01:29][%cal Be2d1,Bd1c2,Bc2b2][%mdl 32]} Kf7 {[%emt 0:00:21]} 52. Be2 {[%emt 0:00:23] 0x0.00215a50a8dbdp-1022s more active pieces.} Ke7 {[%emt 0:00:10]} 53. Kc2 {[%emt 0:00:24]} Qc7 {[%emt 0:00:16]} 54. Kb2 {[%emt 0:00:27]} Qd8 {[%emt 0:00:05]} 55. Qe1 {[%emt 0:00:35]} Bg7 {[%emt 0:00:11]} 56. Bd2 {[%emt 0:02:58]} Bf6 {[%emt 0:00:56]} 57. Qd1 {[%emt 0:01:38]} Bg7 {[%emt 0:00:16]} 58. Be1 {[%emt 0:00:10]} Bf6 {[%emt 0:00:08]} 59. Bf2 {[%emt 0:00:33]} Qc7 {[%emt 0:00:19]} 60. b4 $2 {[%emt 0:02:40]} ({White should try} 60. Kc2 $16) 60... axb4 $15 {[%emt 0:01:08]} 61. Rca1 {[%emt 0:00:33]} Ra5 {[%emt 0:02:58]} 62. Qb3 {[%emt 0:02:29][%mdl 1024] White has compensation.} Qa7 {[%emt 0:01:22]} (62... R5a7 $11) 63. Kc2 $16 {[%emt 0:03:00]} Qb8 {[%emt 0:00:38]} 64. Nb2 {[%emt 0:00:28] Really sharp!} (64. Nxa5 $16 {Threatens to win with Nc6+.} Rxa5 65. Bc4) 64... Qc7 {[%emt 0:00:00]} 65. Bc4 {[%emt 0:00:00]} Kf7 {[%emt 0:00:00]} 66. Nd3 {[%emt 0:00:00]} Ne7 {[%emt 0:00:00]} 67. Be1 {[%emt 0:00:00]} Kf8 {[%emt 0:00:00]} 68. Kd1 $1 {[%emt 0:00:00]} Kg7 {[%emt 0:00:00]} 69. Ke2 {[%emt 0:00:00]} Kf8 {[%emt 0:00:00]} 70. Kf1 {[%emt 0:00:00]} Kg7 {[%emt 0:00:00]} 71. Kg2 {[%emt 0:00:00]} Kf8 {[%emt 0:00:00]} 72. Qc2 {[%emt 0:00:00]} Qa7 {[%emt 0:00:00]} 73. Bb3 {[%emt 0:00:00]} Rc8 {[%emt 0:00:00]} (73... Qb8 $15) 74. Rc1 {[%emt 0:00:00]} (74. Nb2 $11) 74... Qb7 {[%emt 0:00:00]} 75. Qb1 {[%emt 0:00:00]} Qa8 {[%emt 0:00:00]} 76. Rc4 {[%emt 0:00:00]} (76. Nb2 $5 {[%cal Rb2c4]}) 76... Qb7 {[%emt 0:00:00]} 77. Rac2 {[%emt 0:00:00][%cal Od3b4]} Ke8 $2 {[%emt 0:00:00] [#]} (77... Raa8 $15 {keeps the upper hand.}) 78. Bd2 $2 {[%emt 0:00:00]} (78. Nxb4 $1 $16 {[%mdl 512] Strongly threatening Nc6.} cxb4 (78... Raa8 79. Nc6) 79. Rc6) 78... Rca8 $15 {[%emt 0:00:00]} 79. Qc1 {[%emt 0:00:00][%cal Od3b4]} Rxa4 $2 {[%emt 0:00:00]} (79... R5a7 $15 {stays ahead.}) 80. Bxa4 $18 {[%emt 0:00:00]} Rxa4 {[%emt 0:00:00] [#]} 81. Bxb4 $1 {[%emt 0:00:00][%mdl 512]} cxb4 $16 {[%emt 0:00:00]} 82. Rc7 {[%emt 0:00:00]} Qa8 {[%emt 0:00:00] [#]} 83. Rc8+ $1 {[%emt 0:00:00][%mdl 512]} Nxc8 {[%emt 0:00:00]} (83... Qxc8 84. Rxc8+) 84. Rxc8+ {[%emt 0:00:00]} Qxc8 {[%emt 0:00:00]} 85. Qxc8+ {[%emt 0:00:00]} Bd8 {[%emt 0:00:00]} 86. Qc4 {[%emt 0:00:00]} Ra3 {[%emt 0:00:00]} 87. Qxb4 {[%emt 0:02:24]} Ra2+ $2 {[%emt 0:00:00] [#]} (87... Rxd3 $11 {and Black has nothing to worry.} 88. Qxd6 Bf6) 88. Kf1 {[%emt 0:01:00]} (88. Kh3 $1 $18 Ke7 89. Qb3) 88... Nc5 $2 {[%emt 0:00:00][%mdl 8192]} (88... Bc7 $16 89. Qc4 Ra1+ 90. Ke2 Kd8) 89. Qc4 $2 {[%emt 0:03:58]} (89. Nxc5 $18 {and White stays clearly on top.} bxc5 90. Qb1) 89... Nxd3 $4 {[%emt 0:00:00][%mdl 8192]} 90. Qc6+ $2 {[%emt 0:10:15]} ({Less strong is} 90. Qxd3 Ra1+ 91. Kg2 Rc1 $18) ({Only move:} 90. Qxa2 $18 {And now Qa7 would win.} Nc5 91. Qa7) 90... Ke7 $11 {[%emt 0:00:00] The position is equal.} 91. Qb7+ {[%emt 0:00:09]} Ke8 {[%emt 0:00:00]} 92. Qc6+ {[%emt 0:00:05]} Ke7 {[%emt 0:00:00]} 93. Qb7+ {[%emt 0:00:04]} Ke8 {[%emt 0:00:00]} 94. Qg7 {[%emt 0:03:27]} Rf2+ {[%emt 0:00:15]} 95. Kg1 {[%emt 0:00:08]} Re2 {[%emt 0:00:24]} 96. Qg8+ {[%emt 0:02:26]} Kd7 {[%emt 0:00:07]} 97. Qe6+ {[%emt 0:00:11]} Kc7 {[%emt 0:00:05]} 98. Qxh6 {[%emt 0:00:51]} Re1+ {[%emt 0:00:06] Black defended with fortune.  Weighted Error Value: White=0.18 (very precise) /Black=0.13 (very precise)} 1/2-1/2